[Event "Titled Tuesday Blitz June 15 2021"]
[White "Popilski, Gil"]
[Black "Annaberdiyev, Babageldi"]
[WhiteFideId "2809060"]
[BlackFideId "14000385"]
[WhiteElo "2537"]
[BlackElo "2332"]
[Result "0-1"]
[Round "10"]
[TimeControl "180+1"]
[Date "2021.06.15"]
[WhiteClock "0:00:21"]
[BlackClock "0:00:52"]

1. e4 {[%clk 0:02:54]}  e6 {[%clk 0:02:59]} 2. d4 {[%clk 0:02:54]}  d5 {[%clk 0:03:00]} 3. Nc3 {[%clk 0:02:53]}  Nf6 {[%clk 0:03:00]} 4. e5 {[%clk 0:02:53]}  Nfd7 {[%clk 0:02:59]} 5. f4 {[%clk 0:02:52]}  c5 {[%clk 0:02:50]} 6. Nf3 {[%clk 0:02:49]}  a6 {[%clk 0:02:50]} 7. Be3 {[%clk 0:02:48]}  Nc6 {[%clk 0:02:45]} 8. Qd2 {[%clk 0:02:43]}  b5 {[%clk 0:02:45]} 9. a3 {[%clk 0:02:41]}  Bb7 {[%clk 0:02:41]} 10. Bd3 {[%clk 0:02:29]}  g6 {[%clk 0:02:37]} 11. O-O {[%clk 0:02:26]}  Qb6 {[%clk 0:02:37]} 12. Qf2 {[%clk 0:02:23]}  cxd4 {[%clk 0:02:34]} 13. Nxd4 {[%clk 0:02:24]}  Nxd4 {[%clk 0:02:32]} 14. Bxd4 {[%clk 0:02:23]}  Bc5 {[%clk 0:02:23]} 15. Ne2 {[%clk 0:02:17]}  Rc8 {[%clk 0:02:18]} 16. c3 {[%clk 0:01:45]}  Bxd4 {[%clk 0:02:17]} 17. cxd4 {[%clk 0:01:37]}  h5 {[%clk 0:02:17]} 18. Rac1 {[%clk 0:01:20]}  b4 {[%clk 0:02:03]} 19. Rxc8+ {[%clk 0:01:13]}  Bxc8 {[%clk 0:02:04]} 20. Rc1 {[%clk 0:01:13]}  O-O {[%clk 0:01:51]} 21. a4 {[%clk 0:01:09]}  a5 {[%clk 0:01:39]} 22. Qe3 {[%clk 0:00:58]}  Ba6 {[%clk 0:01:35]} 23. Kf2 {[%clk 0:00:56]}  Bxd3 {[%clk 0:01:22]} 24. Qxd3 {[%clk 0:00:57]}  b3 {[%clk 0:01:22]} 25. Qb5 {[%clk 0:00:53]}  Qxb5 {[%clk 0:01:16]} 26. axb5 {[%clk 0:00:54]}  Nb6 {[%clk 0:01:17]} 27. Ke3 {[%clk 0:00:43]}  a4 {[%clk 0:01:13]} 28. Kd3 {[%clk 0:00:42]}  Ra8 {[%clk 0:01:09]} 29. Rc6 {[%clk 0:00:39]}  Nc4 {[%clk 0:01:06]} 30. Kc3 {[%clk 0:00:38]}  a3 {[%clk 0:01:04]} 31. bxa3 {[%clk 0:00:29]}  Rxa3 {[%clk 0:01:04]} 32. Ra6 {[%clk 0:00:21]}  b2+ {[%clk 0:00:52]} 0-1


[Site "https://www.chess.com"]

[Event "Titled Tuesday Blitz June 15 2021"]
[White "Praggnanandhaa R"]
[Black "Jobava, Baadur"]
[WhiteFideId "25059530"]
[BlackFideId "13601520"]
[WhiteElo "2555"]
[BlackElo "2748"]
[Result "1-0"]
[Round "10"]
[TimeControl "180+1"]
[Date "2021.06.15"]
[WhiteClock "0:00:11"]
[BlackClock "0:00:30"]

1. d4 {[%clk 0:03:00]}  d5 {[%clk 0:02:59]} 2. c4 {[%clk 0:03:01]}  c6 {[%clk 0:03:00]} 3. Nf3 {[%clk 0:02:58]}  Nf6 {[%clk 0:03:00]} 4. e3 {[%clk 0:02:49]}  Bf5 {[%clk 0:02:58]} 5. Nc3 {[%clk 0:02:47]}  e6 {[%clk 0:02:59]} 6. Nh4 {[%clk 0:02:44]}  Bg6 {[%clk 0:02:59]} 7. Qb3 {[%clk 0:02:40]}  Qb6 {[%clk 0:02:56]} 8. Nxg6 {[%clk 0:02:38]}  hxg6 {[%clk 0:02:55]} 9. g3 {[%clk 0:02:39]}  Nbd7 {[%clk 0:02:55]} 10. Bg2 {[%clk 0:02:39]}  Be7 {[%clk 0:02:40]} 11. Bd2 {[%clk 0:02:34]}  O-O {[%clk 0:02:39]} 12. O-O {[%clk 0:02:29]}  dxc4 {[%clk 0:02:30]} 13. Qxc4 {[%clk 0:02:26]}  Qxb2 {[%clk 0:02:30]} 14. Rfd1 {[%clk 0:01:39]}  Qa3 {[%clk 0:02:26]} 15. Rab1 {[%clk 0:01:38]}  Nb6 {[%clk 0:02:26]} 16. Qd3 {[%clk 0:01:34]}  Rfd8 {[%clk 0:02:24]} 17. Qc2 {[%clk 0:01:35]}  Rab8 {[%clk 0:02:14]} 18. Bc1 {[%clk 0:01:29]}  Qa6 {[%clk 0:02:09]} 19. Bf1 {[%clk 0:01:21]}  Nc4 {[%clk 0:02:09]} 20. a4 {[%clk 0:01:20]}  Rdc8 {[%clk 0:02:00]} 21. Qb3 {[%clk 0:01:08]}  b5 {[%clk 0:01:39]} 22. axb5 {[%clk 0:01:08]}  cxb5 {[%clk 0:01:40]} 23. Nxb5 {[%clk 0:01:08]}  Qc6 {[%clk 0:01:40]} 24. Nxa7 {[%clk 0:00:53]}  Qf3 {[%clk 0:01:36]} 25. Qd3 {[%clk 0:00:29]}  Ng4 {[%clk 0:01:23]} 26. Qe2 {[%clk 0:00:23]}  Qf5 {[%clk 0:00:50]} 27. Nxc8 {[%clk 0:00:18]}  Rxc8 {[%clk 0:00:51]} 28. e4 {[%clk 0:00:18]}  Qh5 {[%clk 0:00:47]} 29. h3 {[%clk 0:00:17]}  Nf6 {[%clk 0:00:43]} 30. Qxh5 {[%clk 0:00:17]}  gxh5 {[%clk 0:00:44]} 31. Bg5 {[%clk 0:00:16]}  Na3 {[%clk 0:00:40]} 32. Rb3 {[%clk 0:00:15]}  Nc2 {[%clk 0:00:33]} 33. Rc1 {[%clk 0:00:14]}  Kh7 {[%clk 0:00:31]} 34. e5 {[%clk 0:00:11]}  Nd5 {[%clk 0:00:29]} 35. Bxe7 {[%clk 0:00:11]}  Nxe7 {[%clk 0:00:30]} 36. Rxc2 {[%clk 0:00:11]} 1-0


[Site "https://www.chess.com"]

[Event "Titled Tuesday Blitz June 15 2021"]
[White "Sadykov, Ramil"]
[Black "Mikhailovsky, Vladimir"]
[WhiteFideId "24113590"]
[BlackFideId "34105414"]
[WhiteElo "2300"]
[BlackElo "2314"]
[Result "1-0"]
[Round "10"]
[TimeControl "180+1"]
[Date "2021.06.15"]
[WhiteClock "0:00:31"]
[BlackClock "0:00:01"]

1. d4 {[%clk 0:02:57]}  e5 {[%clk 0:02:54]} 2. dxe5 {[%clk 0:02:56]}  Nc6 {[%clk 0:02:55]} 3. Nf3 {[%clk 0:02:55]}  Nge7 {[%clk 0:02:55]} 4. Bf4 {[%clk 0:02:47]}  h6 {[%clk 0:02:54]} 5. e4 {[%clk 0:02:38]}  g5 {[%clk 0:02:53]} 6. Bg3 {[%clk 0:02:37]}  Bg7 {[%clk 0:02:54]} 7. Nc3 {[%clk 0:02:34]}  Ng6 {[%clk 0:02:54]} 8. Bc4 {[%clk 0:02:28]}  Ngxe5 {[%clk 0:02:49]} 9. Nxe5 {[%clk 0:02:26]}  Nxe5 {[%clk 0:02:49]} 10. Bb3 {[%clk 0:02:20]}  d6 {[%clk 0:02:47]} 11. f3 {[%clk 0:02:16]}  Be6 {[%clk 0:02:44]} 12. Qe2 {[%clk 0:02:13]}  c6 {[%clk 0:02:41]} 13. h4 {[%clk 0:02:11]}  Qa5 {[%clk 0:02:30]} 14. O-O-O {[%clk 0:02:05]}  O-O-O {[%clk 0:02:29]} 15. Kb1 {[%clk 0:02:02]}  Ng6 {[%clk 0:02:16]} 16. hxg5 {[%clk 0:01:57]}  hxg5 {[%clk 0:02:16]} 17. Rxh8 {[%clk 0:01:58]}  Bxh8 {[%clk 0:02:16]} 18. Rxd6 {[%clk 0:01:50]}  Rxd6 {[%clk 0:02:10]} 19. Bxd6 {[%clk 0:01:51]}  Bxc3 {[%clk 0:02:10]} 20. bxc3 {[%clk 0:01:50]}  Qxc3 {[%clk 0:02:11]} 21. Qd1 {[%clk 0:01:30]}  Ne5 {[%clk 0:01:55]} 22. Be7 {[%clk 0:01:12]}  Nd7 {[%clk 0:01:12]} 23. Bxg5 {[%clk 0:01:07]}  a5 {[%clk 0:01:02]} 24. Qd6 {[%clk 0:01:01]}  a4 {[%clk 0:00:46]} 25. Bf4 {[%clk 0:00:45]}  Kd8 {[%clk 0:00:23]} 26. Bxa4 {[%clk 0:00:44]}  Qe1+ {[%clk 0:00:14]} 27. Kb2 {[%clk 0:00:44]}  Qa5 {[%clk 0:00:07]} 28. Bb3 {[%clk 0:00:43]}  Bxb3 {[%clk 0:00:04]} 29. axb3 {[%clk 0:00:42]}  Qc5 {[%clk 0:00:02]} 30. g4 {[%clk 0:00:35]}  Qxd6 {[%clk 0:00:02]} 31. Bxd6 {[%clk 0:00:36]}  b5 {[%clk 0:00:01]} 32. Kc3 {[%clk 0:00:33]}  Nf6 {[%clk 0:00:01]} 33. Kd4 {[%clk 0:00:32]}  Kd7 {[%clk 0:00:01]} 34. Be5 {[%clk 0:00:32]}  Ne8 {[%clk 0:00:01]} 35. Kc5 {[%clk 0:00:31]} 1-0


[Site "https://www.chess.com"]

[Event "Titled Tuesday Blitz June 15 2021"]
[White "Sarana, Alexey"]
[Black "Mekhitarian, Krikor Sevag"]
[WhiteFideId "24133795"]
[BlackFideId "2107660"]
[WhiteElo "2629"]
[BlackElo "2598"]
[Result "1-0"]
[Round "10"]
[TimeControl "180+1"]
[Date "2021.06.15"]
[WhiteClock "0:00:13"]
[BlackClock "0:00:02"]

1. e4 {[%clk 0:02:57]}  c5 {[%clk 0:02:59]} 2. Nf3 {[%clk 0:02:57]}  g6 {[%clk 0:02:59]} 3. c3 {[%clk 0:02:57]}  d5 {[%clk 0:02:59]} 4. e5 {[%clk 0:02:57]}  Bg4 {[%clk 0:02:57]} 5. d4 {[%clk 0:02:56]}  Bxf3 {[%clk 0:02:35]} 6. Qxf3 {[%clk 0:02:55]}  Nc6 {[%clk 0:02:31]} 7. dxc5 {[%clk 0:02:52]}  e6 {[%clk 0:02:30]} 8. b4 {[%clk 0:02:48]}  Bg7 {[%clk 0:02:24]} 9. Bf4 {[%clk 0:02:42]}  Nge7 {[%clk 0:02:20]} 10. Bb5 {[%clk 0:02:41]}  O-O {[%clk 0:02:20]} 11. O-O {[%clk 0:02:34]}  Nxe5 {[%clk 0:02:18]} 12. Qe2 {[%clk 0:02:34]}  N5c6 {[%clk 0:02:13]} 13. a3 {[%clk 0:02:32]}  a5 {[%clk 0:02:06]} 14. Ra2 {[%clk 0:02:31]}  d4 {[%clk 0:01:39]} 15. Rd1 {[%clk 0:02:24]}  Qc8 {[%clk 0:01:27]} 16. Bd6 {[%clk 0:02:21]}  Rd8 {[%clk 0:01:24]} 17. cxd4 {[%clk 0:02:21]}  Nf5 {[%clk 0:01:21]} 18. Bxc6 {[%clk 0:02:09]}  Qxc6 {[%clk 0:01:18]} 19. b5 {[%clk 0:02:09]}  Qd5 {[%clk 0:01:14]} 20. Nc3 {[%clk 0:02:08]}  Qb3 {[%clk 0:01:06]} 21. Rd3 {[%clk 0:01:25]}  Nxd6 {[%clk 0:00:56]} 22. cxd6 {[%clk 0:01:21]}  Rac8 {[%clk 0:00:54]} 23. Rc2 {[%clk 0:01:12]}  Rxd6 {[%clk 0:00:49]} 24. h4 {[%clk 0:01:10]}  Rxd4 {[%clk 0:00:44]} 25. Rf3 {[%clk 0:01:01]}  Rdc4 {[%clk 0:00:32]} 26. Rb2 {[%clk 0:00:47]}  Qxa3 {[%clk 0:00:28]} 27. Nd1 {[%clk 0:00:46]}  Qc5 {[%clk 0:00:19]} 28. Rd2 {[%clk 0:00:46]}  Qxb5 {[%clk 0:00:16]} 29. g3 {[%clk 0:00:39]}  Rb4 {[%clk 0:00:15]} 30. Rfd3 {[%clk 0:00:38]}  h5 {[%clk 0:00:14]} 31. Qf3 {[%clk 0:00:37]}  Qf5 {[%clk 0:00:12]} 32. Qg2 {[%clk 0:00:32]}  Qe4 {[%clk 0:00:10]} 33. Qf1 {[%clk 0:00:31]}  Rb1 {[%clk 0:00:09]} 34. Re3 {[%clk 0:00:24]}  Qa4 {[%clk 0:00:09]} 35. Qd3 {[%clk 0:00:22]}  Rcc1 {[%clk 0:00:09]} 36. Re1 {[%clk 0:00:21]}  Qc6 {[%clk 0:00:07]} 37. Qe3 {[%clk 0:00:16]}  Kh7 {[%clk 0:00:06]} 38. Rd8 {[%clk 0:00:16]}  Qc7 {[%clk 0:00:05]} 39. Qd3 {[%clk 0:00:14]}  a4 {[%clk 0:00:04]} 40. Rd7 {[%clk 0:00:14]}  Qc4 {[%clk 0:00:04]} 41. Qf3 {[%clk 0:00:14]}  Qb3 {[%clk 0:00:02]} 42. Qxf7 {[%clk 0:00:13]} 1-0


[Site "https://www.chess.com"]

[Event "Titled Tuesday Blitz June 15 2021"]
[White "Shuvalova, Polina"]
[Black "Gracia Alvarez, Gerardo Antonio"]
[WhiteFideId "24171760"]
[BlackFideId "5109124"]
[WhiteElo "2299"]
[BlackElo "2148"]
[Result "1-0"]
[Round "10"]
[TimeControl "180+1"]
[Date "2021.06.15"]
[WhiteClock "0:01:23"]
[BlackClock "0:00:12"]

1. Nf3 {[%clk 0:03:00]}  c5 {[%clk 0:02:59]} 2. e4 {[%clk 0:03:01]}  d6 {[%clk 0:02:57]} 3. d4 {[%clk 0:03:00]}  cxd4 {[%clk 0:02:58]} 4. Nxd4 {[%clk 0:03:01]}  Nf6 {[%clk 0:02:59]} 5. Nc3 {[%clk 0:03:02]}  g6 {[%clk 0:02:59]} 6. Be3 {[%clk 0:03:00]}  Nc6 {[%clk 0:02:58]} 7. Qd2 {[%clk 0:02:59]}  Ng4 {[%clk 0:02:33]} 8. Bg5 {[%clk 0:02:50]}  Bg7 {[%clk 0:02:15]} 9. Nb3 {[%clk 0:02:46]}  h6 {[%clk 0:02:13]} 10. Bh4 {[%clk 0:02:45]}  Be6 {[%clk 0:02:01]} 11. h3 {[%clk 0:02:43]}  Nge5 {[%clk 0:02:00]} 12. O-O-O {[%clk 0:02:35]}  g5 {[%clk 0:01:47]} 13. Bg3 {[%clk 0:02:35]}  Rc8 {[%clk 0:01:47]} 14. Kb1 {[%clk 0:02:34]}  Na5 {[%clk 0:01:29]} 15. f4 {[%clk 0:02:28]}  gxf4 {[%clk 0:01:25]} 16. Qxf4 {[%clk 0:02:22]}  Nac4 {[%clk 0:01:16]} 17. Bxc4 {[%clk 0:02:20]}  Nxc4 {[%clk 0:01:14]} 18. Rd3 {[%clk 0:02:09]}  Nxb2 {[%clk 0:00:47]} 19. Kxb2 {[%clk 0:02:03]}  b5 {[%clk 0:00:46]} 20. e5 {[%clk 0:01:54]}  Bxe5 {[%clk 0:00:36]} 21. Qxe5 {[%clk 0:01:47]}  dxe5 {[%clk 0:00:36]} 22. Rxd8+ {[%clk 0:01:47]}  Rxd8 {[%clk 0:00:36]} 23. Bxe5 {[%clk 0:01:48]}  Rg8 {[%clk 0:00:36]} 24. Nxb5 {[%clk 0:01:37]}  Rxg2 {[%clk 0:00:36]} 25. Nc7+ {[%clk 0:01:37]}  Kf8 {[%clk 0:00:30]} 26. Nxe6+ {[%clk 0:01:37]}  fxe6 {[%clk 0:00:30]} 27. Nd4 {[%clk 0:01:37]}  Rd5 {[%clk 0:00:23]} 28. Nxe6+ {[%clk 0:01:31]}  Kf7 {[%clk 0:00:21]} 29. Nf4 {[%clk 0:01:27]}  Rb5+ {[%clk 0:00:21]} 30. Kc3 {[%clk 0:01:27]}  Rg3+ {[%clk 0:00:20]} 31. Kd4 {[%clk 0:01:25]}  Rb4+ {[%clk 0:00:18]} 32. c4 {[%clk 0:01:25]}  Ra4 {[%clk 0:00:13]} 33. Rf1 {[%clk 0:01:24]}  Rxa2 {[%clk 0:00:13]} 34. Nd3+ {[%clk 0:01:23]}  Ke8 {[%clk 0:00:12]} 35. Bxg3 {[%clk 0:01:23]} 1-0


[Site "https://www.chess.com"]

[Event "Titled Tuesday Blitz June 15 2021"]
[White "Slizhevsky, Alexander"]
[Black "Kretov, Evgenij"]
[WhiteFideId "4152050"]
[BlackFideId "4167821"]
[WhiteElo "2380"]
[BlackElo "2400"]
[Result "1/2-1/2"]
[Round "10"]
[TimeControl "180+1"]
[Date "2021.06.15"]
[WhiteClock "0:00:08"]
[BlackClock "0:00:35"]

1. e4 {[%clk 0:03:00]}  c5 {[%clk 0:02:58]} 2. Nf3 {[%clk 0:03:01]}  Nc6 {[%clk 0:02:59]} 3. d4 {[%clk 0:03:01]}  cxd4 {[%clk 0:02:59]} 4. Nxd4 {[%clk 0:03:02]}  g6 {[%clk 0:02:59]} 5. Nc3 {[%clk 0:03:00]}  Bg7 {[%clk 0:03:00]} 6. Be3 {[%clk 0:03:01]}  Nf6 {[%clk 0:03:00]} 7. Bc4 {[%clk 0:03:01]}  O-O {[%clk 0:03:00]} 8. Bb3 {[%clk 0:03:00]}  d6 {[%clk 0:03:01]} 9. f3 {[%clk 0:02:55]}  Bd7 {[%clk 0:03:01]} 10. Qd2 {[%clk 0:02:53]}  Nxd4 {[%clk 0:03:01]} 11. Bxd4 {[%clk 0:02:53]}  b5 {[%clk 0:03:02]} 12. a4 {[%clk 0:02:48]}  b4 {[%clk 0:03:01]} 13. Nd5 {[%clk 0:02:47]}  Nxd5 {[%clk 0:03:01]} 14. exd5 {[%clk 0:02:42]}  Qc7 {[%clk 0:02:54]} 15. Qxb4 {[%clk 0:02:30]}  Bh6 {[%clk 0:02:46]} 16. O-O {[%clk 0:02:20]}  Rfc8 {[%clk 0:02:43]} 17. Qe1 {[%clk 0:02:13]}  Bf5 {[%clk 0:02:39]} 18. Rf2 {[%clk 0:02:09]}  Qd8 {[%clk 0:02:14]} 19. Re2 {[%clk 0:02:01]}  Bf8 {[%clk 0:02:13]} 20. a5 {[%clk 0:01:43]}  Rc7 {[%clk 0:02:00]} 21. Qd2 {[%clk 0:01:29]}  Rac8 {[%clk 0:01:57]} 22. c3 {[%clk 0:01:15]}  Rb8 {[%clk 0:01:52]} 23. Ba4 {[%clk 0:01:05]}  e5 {[%clk 0:01:47]} 24. dxe6 {[%clk 0:01:02]}  Bxe6 {[%clk 0:01:45]} 25. b4 {[%clk 0:00:58]}  Qh4 {[%clk 0:01:42]} 26. Rae1 {[%clk 0:00:53]}  Bh6 {[%clk 0:01:35]} 27. Qd1 {[%clk 0:00:44]}  Rf8 {[%clk 0:01:26]} 28. Bb3 {[%clk 0:00:37]}  Bxb3 {[%clk 0:01:20]} 29. Qxb3 {[%clk 0:00:38]}  Qg5 {[%clk 0:00:58]} 30. Be3 {[%clk 0:00:27]}  Qh4 {[%clk 0:00:54]} 31. Bxh6 {[%clk 0:00:27]}  Qxh6 {[%clk 0:00:55]} 32. Re8 {[%clk 0:00:26]}  Qd2 {[%clk 0:00:54]} 33. R8e3 {[%clk 0:00:18]}  Rfc8 {[%clk 0:00:52]} 34. Qd1 {[%clk 0:00:18]}  Qxd1 {[%clk 0:00:47]} 35. Rxd1 {[%clk 0:00:19]}  Rxc3 {[%clk 0:00:47]} 36. Rxc3 {[%clk 0:00:19]}  Rxc3 {[%clk 0:00:47]} 37. Rxd6 {[%clk 0:00:20]}  Rb3 {[%clk 0:00:47]} 38. Rd8+ {[%clk 0:00:18]}  Kg7 {[%clk 0:00:47]} 39. Rb8 {[%clk 0:00:18]}  a6 {[%clk 0:00:46]} 40. Rb6 {[%clk 0:00:18]}  h5 {[%clk 0:00:45]} 41. h4 {[%clk 0:00:18]}  Kh6 {[%clk 0:00:44]} 42. Kh2 {[%clk 0:00:18]}  Rb2 {[%clk 0:00:44]} 43. Kg3 {[%clk 0:00:18]}  Rb3 {[%clk 0:00:44]} 44. Rxa6 {[%clk 0:00:15]}  Rxb4 {[%clk 0:00:41]} 45. Rb6 {[%clk 0:00:15]}  Ra4 {[%clk 0:00:41]} 46. a6 {[%clk 0:00:16]}  Kg7 {[%clk 0:00:41]} 47. Kh3 {[%clk 0:00:15]}  Kf8 {[%clk 0:00:41]} 48. g4 {[%clk 0:00:14]}  hxg4+ {[%clk 0:00:40]} 49. fxg4 {[%clk 0:00:14]}  Ra3+ {[%clk 0:00:40]} 50. Kg2 {[%clk 0:00:15]}  Kg7 {[%clk 0:00:41]} 51. Kf2 {[%clk 0:00:14]}  Kh6 {[%clk 0:00:36]} 52. Ke2 {[%clk 0:00:13]}  Ra4 {[%clk 0:00:35]} 53. Kf3 {[%clk 0:00:13]}  Ra3+ {[%clk 0:00:34]} 54. Kf4 {[%clk 0:00:13]}  Ra4+ {[%clk 0:00:35]} 55. Kg3 {[%clk 0:00:12]}  Ra3+ {[%clk 0:00:35]} 56. Kg2 {[%clk 0:00:12]}  Ra4 {[%clk 0:00:34]} 57. Kf3 {[%clk 0:00:11]}  Ra3+ {[%clk 0:00:34]} 58. Kf4 {[%clk 0:00:10]}  Ra4+ {[%clk 0:00:35]} 59. Kf3 {[%clk 0:00:08]} 1/2-1/2


[Site "https://www.chess.com"]

[Event "Titled Tuesday Blitz June 15 2021"]
[White "Terry, Renato"]
[Black "Karttunen, Mika"]
[WhiteFideId "3803457"]
[BlackFideId "502081"]
[WhiteElo "2581"]
[BlackElo "2343"]
[Result "0-1"]
[Round "10"]
[TimeControl "180+1"]
[Date "2021.06.15"]
[WhiteClock "0:00:57"]
[BlackClock "0:00:27"]

1. Nh3 {[%clk 0:03:00]}  Nf6 {[%clk 0:02:58]} 2. g3 {[%clk 0:03:00]}  e5 {[%clk 0:02:55]} 3. d3 {[%clk 0:02:58]}  d6 {[%clk 0:02:52]} 4. f4 {[%clk 0:02:57]}  Be7 {[%clk 0:02:45]} 5. Bg2 {[%clk 0:02:55]}  O-O {[%clk 0:02:44]} 6. O-O {[%clk 0:02:55]}  Nc6 {[%clk 0:02:39]} 7. f5 {[%clk 0:02:55]}  d5 {[%clk 0:02:38]} 8. e3 {[%clk 0:02:55]}  e4 {[%clk 0:02:32]} 9. d4 {[%clk 0:02:46]}  h6 {[%clk 0:02:16]} 10. c4 {[%clk 0:02:42]}  Nb4 {[%clk 0:02:12]} 11. cxd5 {[%clk 0:02:40]}  Nbxd5 {[%clk 0:02:03]} 12. Nc3 {[%clk 0:02:38]}  Nxc3 {[%clk 0:02:00]} 13. bxc3 {[%clk 0:02:39]}  c5 {[%clk 0:02:00]} 14. Qb3 {[%clk 0:02:33]}  Rb8 {[%clk 0:01:54]} 15. Ba3 {[%clk 0:02:25]}  Qc7 {[%clk 0:01:50]} 16. Rad1 {[%clk 0:02:20]}  b5 {[%clk 0:01:46]} 17. d5 {[%clk 0:02:01]}  Bd6 {[%clk 0:01:19]} 18. c4 {[%clk 0:01:51]}  bxc4 {[%clk 0:01:17]} 19. Qxc4 {[%clk 0:01:52]}  Qa5 {[%clk 0:01:16]} 20. Qc1 {[%clk 0:01:51]}  Ba6 {[%clk 0:01:10]} 21. Rfe1 {[%clk 0:01:51]}  Bd3 {[%clk 0:01:10]} 22. Nf2 {[%clk 0:01:51]}  Rb1 {[%clk 0:00:48]} 23. Qxb1 {[%clk 0:01:30]}  Bxb1 {[%clk 0:00:48]} 24. Bb2 {[%clk 0:01:31]}  Bd3 {[%clk 0:00:35]} 25. Nxd3 {[%clk 0:01:30]}  exd3 {[%clk 0:00:34]} 26. e4 {[%clk 0:01:31]}  c4 {[%clk 0:00:32]} 27. e5 {[%clk 0:01:05]}  Bc5+ {[%clk 0:00:30]} 28. Kf1 {[%clk 0:01:06]}  Ng4 {[%clk 0:00:31]} 29. Bf3 {[%clk 0:00:58]}  Ne3+ {[%clk 0:00:26]} 30. Rxe3 {[%clk 0:00:57]}  Bxe3 {[%clk 0:00:27]} 0-1


[Site "https://www.chess.com"]

[Event "Titled Tuesday Blitz June 15 2021"]
[White "Tsotsonava, Elene"]
[Black "shnitez"]
[WhiteFideId "13615939"]
[WhiteElo "1847"]
[BlackElo "2499"]
[Result "1-0"]
[Round "10"]
[TimeControl "180+1"]
[Date "2021.06.15"]
[WhiteClock "0:00:27"]
[BlackClock "0:00:01"]

1. e4 {[%clk 0:03:00]}  e5 {[%clk 0:02:59]} 2. Nf3 {[%clk 0:03:00]}  Nc6 {[%clk 0:02:59]} 3. Bb5 {[%clk 0:02:59]}  a6 {[%clk 0:02:58]} 4. Ba4 {[%clk 0:02:58]}  Nf6 {[%clk 0:02:57]} 5. O-O {[%clk 0:02:58]}  Be7 {[%clk 0:02:56]} 6. Re1 {[%clk 0:02:57]}  b5 {[%clk 0:02:55]} 7. Bb3 {[%clk 0:02:57]}  d6 {[%clk 0:02:56]} 8. c3 {[%clk 0:02:56]}  O-O {[%clk 0:02:54]} 9. h3 {[%clk 0:02:56]}  Nb8 {[%clk 0:02:54]} 10. d4 {[%clk 0:02:55]}  Nbd7 {[%clk 0:02:54]} 11. Nbd2 {[%clk 0:02:55]}  Bb7 {[%clk 0:02:54]} 12. Bc2 {[%clk 0:02:55]}  Re8 {[%clk 0:02:53]} 13. Nf1 {[%clk 0:02:55]}  Bf8 {[%clk 0:02:53]} 14. Ng3 {[%clk 0:02:55]}  g6 {[%clk 0:02:53]} 15. a4 {[%clk 0:02:53]}  c5 {[%clk 0:02:50]} 16. d5 {[%clk 0:02:53]}  c4 {[%clk 0:02:50]} 17. Nf1 {[%clk 0:02:44]}  Nc5 {[%clk 0:02:48]} 18. g4 {[%clk 0:02:43]}  Nfd7 {[%clk 0:02:34]} 19. Ng3 {[%clk 0:02:42]}  Be7 {[%clk 0:02:10]} 20. Kh2 {[%clk 0:02:40]}  Kh8 {[%clk 0:02:09]} 21. Bd2 {[%clk 0:02:36]}  Rg8 {[%clk 0:02:00]} 22. Qe2 {[%clk 0:02:35]}  Nb6 {[%clk 0:01:50]} 23. axb5 {[%clk 0:02:31]}  axb5 {[%clk 0:01:50]} 24. Rxa8 {[%clk 0:02:29]}  Qxa8 {[%clk 0:01:39]} 25. Ng5 {[%clk 0:02:27]}  Rg7 {[%clk 0:01:29]} 26. h4 {[%clk 0:02:21]}  Qd8 {[%clk 0:01:24]} 27. Qf3 {[%clk 0:02:04]}  Kg8 {[%clk 0:01:18]} 28. Nh3 {[%clk 0:02:04]}  f6 {[%clk 0:00:55]} 29. h5 {[%clk 0:02:02]}  Bc8 {[%clk 0:00:50]} 30. Rg1 {[%clk 0:01:51]}  Kh8 {[%clk 0:00:48]} 31. Bh6 {[%clk 0:01:46]}  Rf7 {[%clk 0:00:43]} 32. Be3 {[%clk 0:01:46]}  Nba4 {[%clk 0:00:38]} 33. Ng5 {[%clk 0:01:36]}  Rf8 {[%clk 0:00:31]} 34. Nh3 {[%clk 0:01:12]}  Nxb2 {[%clk 0:00:24]} 35. Bxc5 {[%clk 0:01:11]}  dxc5 {[%clk 0:00:25]} 36. Rb1 {[%clk 0:01:10]}  Nd3 {[%clk 0:00:20]} 37. Rxb5 {[%clk 0:01:07]}  Bd7 {[%clk 0:00:18]} 38. Rb1 {[%clk 0:01:02]}  Qa5 {[%clk 0:00:13]} 39. Bxd3 {[%clk 0:01:00]}  cxd3 {[%clk 0:00:14]} 40. Qxd3 {[%clk 0:01:00]}  Bxg4 {[%clk 0:00:12]} 41. Qe3 {[%clk 0:00:51]}  Bxh3 {[%clk 0:00:08]} 42. hxg6 {[%clk 0:00:46]}  Kg7 {[%clk 0:00:03]} 43. Nh5+ {[%clk 0:00:38]}  Kxg6 {[%clk 0:00:02]} 44. Rg1+ {[%clk 0:00:36]}  Kf7 {[%clk 0:00:03]} 45. Qxh3 {[%clk 0:00:35]}  Ke8 {[%clk 0:00:03]} 46. Qc8+ {[%clk 0:00:32]}  Kf7 {[%clk 0:00:03]} 47. Qe6+ {[%clk 0:00:32]}  Ke8 {[%clk 0:00:02]} 48. Ng7+ {[%clk 0:00:27]}  Kd8 {[%clk 0:00:02]} 49. d6 {[%clk 0:00:28]}  Qa7 {[%clk 0:00:01]} 50. dxe7+ {[%clk 0:00:27]}  Qxe7 {[%clk 0:00:01]} 51. Rd1+ {[%clk 0:00:27]} 1-0


[Site "https://www.chess.com"]

[Event "Titled Tuesday Blitz June 15 2021"]
[White "Urazayev, Arystanbek"]
[Black "Quintiliano Pinto, Renato R."]
[WhiteFideId "13709810"]
[BlackFideId "2117568"]
[WhiteElo "2321"]
[BlackElo "2439"]
[Result "1-0"]
[Round "10"]
[TimeControl "180+1"]
[Date "2021.06.15"]
[WhiteClock "0:01:58"]
[BlackClock "0:00:12"]

1. e4 {[%clk 0:03:00]}  c5 {[%clk 0:02:59]} 2. Nf3 {[%clk 0:03:01]}  d6 {[%clk 0:02:59]} 3. d4 {[%clk 0:03:01]}  cxd4 {[%clk 0:02:59]} 4. Nxd4 {[%clk 0:03:02]}  Nf6 {[%clk 0:03:00]} 5. Nc3 {[%clk 0:03:03]}  a6 {[%clk 0:02:59]} 6. Rg1 {[%clk 0:03:03]}  e5 {[%clk 0:02:57]} 7. Nb3 {[%clk 0:03:03]}  Be6 {[%clk 0:02:54]} 8. g4 {[%clk 0:03:03]}  d5 {[%clk 0:02:53]} 9. exd5 {[%clk 0:03:04]}  Nxd5 {[%clk 0:02:53]} 10. Nxd5 {[%clk 0:03:05]}  Qxd5 {[%clk 0:02:52]} 11. Qxd5 {[%clk 0:03:05]}  Bxd5 {[%clk 0:02:53]} 12. Be3 {[%clk 0:03:06]}  Nc6 {[%clk 0:02:52]} 13. O-O-O {[%clk 0:03:06]}  O-O-O {[%clk 0:02:53]} 14. Bb6 {[%clk 0:03:07]}  Rd7 {[%clk 0:02:52]} 15. a3 {[%clk 0:03:07]}  Be7 {[%clk 0:02:47]} 16. g5 {[%clk 0:03:07]}  Be6 {[%clk 0:02:36]} 17. Rxd7 {[%clk 0:03:07]}  Kxd7 {[%clk 0:02:36]} 18. Nc5+ {[%clk 0:03:05]}  Bxc5 {[%clk 0:02:35]} 19. Bxc5 {[%clk 0:03:06]}  h6 {[%clk 0:02:13]} 20. g6 {[%clk 0:03:06]}  f6 {[%clk 0:01:48]} 21. Bg2 {[%clk 0:03:05]}  Bf5 {[%clk 0:01:14]} 22. Bd5 {[%clk 0:02:59]}  Kc7 {[%clk 0:01:06]} 23. h4 {[%clk 0:02:57]}  Rd8 {[%clk 0:01:02]} 24. Bf7 {[%clk 0:02:55]}  Nd4 {[%clk 0:01:00]} 25. Kb1 {[%clk 0:02:45]}  Bxc2+ {[%clk 0:00:47]} 26. Ka2 {[%clk 0:02:45]}  Bf5 {[%clk 0:00:33]} 27. Be7 {[%clk 0:02:44]}  Rd7 {[%clk 0:00:31]} 28. Bxf6 {[%clk 0:02:03]}  Be6+ {[%clk 0:00:15]} 29. Bxe6 {[%clk 0:02:01]}  Nxe6 {[%clk 0:00:16]} 30. Bxe5+ {[%clk 0:02:02]}  Kb6 {[%clk 0:00:16]} 31. f4 {[%clk 0:02:02]}  Nc5 {[%clk 0:00:13]} 32. f5 {[%clk 0:02:00]}  Nd3 {[%clk 0:00:13]} 33. Bc3 {[%clk 0:01:59]}  Nf4 {[%clk 0:00:12]} 34. f6 {[%clk 0:01:58]} 1-0


[Site "https://www.chess.com"]